[Event "Titled Tuesday Blitz November 08 Late 2022"]
[White "Janaszak, Dawid"]
[Black "Wirig, Anthony"]
[WhiteFideId "1119206"]
[BlackFideId "615013"]
[WhiteElo "2226"]
[BlackElo "2487"]
[Result "1-0"]
[Round "02"]
[TimeControl "180+1"]
[Date "2022.11.09"]
[WhiteClock "0:00:14"]
[BlackClock "0:00:14"]

1. d4 {[%clk 0:03:00]}  Nf6 {[%clk 0:02:59]} 2. Bf4 {[%clk 0:03:01]}  Nc6 {[%clk 0:02:58]} 3. Nf3 {[%clk 0:02:58]}  d6 {[%clk 0:02:58]} 4. e3 {[%clk 0:02:53]}  g6 {[%clk 0:02:56]} 5. Bc4 {[%clk 0:02:41]}  Bg7 {[%clk 0:02:51]} 6. O-O {[%clk 0:02:42]}  O-O {[%clk 0:02:51]} 7. h3 {[%clk 0:02:41]}  Nd7 {[%clk 0:02:37]} 8. c3 {[%clk 0:02:39]}  e5 {[%clk 0:02:36]} 9. Bh2 {[%clk 0:02:33]}  Qe7 {[%clk 0:02:32]} 10. b4 {[%clk 0:02:27]}  a6 {[%clk 0:02:31]} 11. a4 {[%clk 0:02:25]}  Kh8 {[%clk 0:02:04]} 12. Nbd2 {[%clk 0:02:24]}  h6 {[%clk 0:02:02]} 13. b5 {[%clk 0:02:19]}  Na5 {[%clk 0:02:01]} 14. Ba2 {[%clk 0:02:16]}  b6 {[%clk 0:01:55]} 15. c4 {[%clk 0:02:11]}  Bb7 {[%clk 0:01:49]} 16. Rc1 {[%clk 0:02:02]}  f5 {[%clk 0:01:46]} 17. bxa6 {[%clk 0:01:48]}  Rxa6 {[%clk 0:01:38]} 18. Nb1 {[%clk 0:01:37]}  g5 {[%clk 0:01:31]} 19. Nc3 {[%clk 0:01:36]}  g4 {[%clk 0:01:25]} 20. hxg4 {[%clk 0:01:37]}  fxg4 {[%clk 0:01:25]} 21. Ne1 {[%clk 0:01:34]}  Qg5 {[%clk 0:01:14]} 22. Nd5 {[%clk 0:01:14]}  c6 {[%clk 0:01:09]} 23. Nc7 {[%clk 0:01:10]}  Rf6 {[%clk 0:00:54]} 24. Nxa6 {[%clk 0:01:08]}  Bxa6 {[%clk 0:00:55]} 25. dxe5 {[%clk 0:01:06]}  Nxe5 {[%clk 0:00:53]} 26. Bxe5 {[%clk 0:01:05]}  Qxe5 {[%clk 0:00:42]} 27. Nd3 {[%clk 0:01:00]}  Qg5 {[%clk 0:00:36]} 28. Nf4 {[%clk 0:01:00]}  Bc8 {[%clk 0:00:31]} 29. Bb1 {[%clk 0:00:55]}  g3 {[%clk 0:00:30]} 30. Qd3 {[%clk 0:00:54]}  Bf5 {[%clk 0:00:30]} 31. Qe2 {[%clk 0:00:45]}  Bg4 {[%clk 0:00:28]} 32. Qd3 {[%clk 0:00:40]}  Bf5 {[%clk 0:00:28]} 33. Qd2 {[%clk 0:00:35]}  Bd7 {[%clk 0:00:20]} 34. fxg3 {[%clk 0:00:33]}  Nb7 {[%clk 0:00:19]} 35. Qd3 {[%clk 0:00:29]}  Bf5 {[%clk 0:00:19]} 36. e4 {[%clk 0:00:29]}  Nc5 {[%clk 0:00:19]} 37. Qf3 {[%clk 0:00:26]}  Bg4 {[%clk 0:00:19]} 38. Qe3 {[%clk 0:00:22]}  Rf8 {[%clk 0:00:14]} 39. Rce1 {[%clk 0:00:16]}  Kg8 {[%clk 0:00:14]} 40. Nd3 {[%clk 0:00:15]}  Qxe3+ {[%clk 0:00:12]} 41. Rxe3 {[%clk 0:00:15]}  Bd4 {[%clk 0:00:13]} 42. Rxf8+ {[%clk 0:00:14]}  Kxf8 {[%clk 0:00:14]} 43. Kf2 {[%clk 0:00:14]}  Nxa4 {[%clk 0:00:14]} 44. Nf4 {[%clk 0:00:14]}  Nc3 {[%clk 0:00:13]} 45. Bc2 {[%clk 0:00:12]}  Bd1 {[%clk 0:00:13]} 46. Ne6+ {[%clk 0:00:08]}  Ke7 {[%clk 0:00:12]} 47. Nxd4 {[%clk 0:00:09]}  Bxc2 {[%clk 0:00:11]} 48. Rxc3 {[%clk 0:00:08]}  Ba4 {[%clk 0:00:11]} 49. Ke3 {[%clk 0:00:07]}  c5 {[%clk 0:00:11]} 50. Nf5+ {[%clk 0:00:08]}  Ke6 {[%clk 0:00:11]} 51. Nxh6 {[%clk 0:00:08]}  Ke5 {[%clk 0:00:11]} 52. Ng4+ {[%clk 0:00:08]}  Ke6 {[%clk 0:00:12]} 53. Nf2 {[%clk 0:00:09]}  Be8 {[%clk 0:00:12]} 54. Nd3 {[%clk 0:00:09]}  b5 {[%clk 0:00:12]} 55. Nf4+ {[%clk 0:00:10]}  Ke5 {[%clk 0:00:13]} 56. cxb5 {[%clk 0:00:11]}  Bxb5 {[%clk 0:00:12]} 57. Nd3+ {[%clk 0:00:11]}  Ke6 {[%clk 0:00:12]} 58. Nxc5+ {[%clk 0:00:11]}  dxc5 {[%clk 0:00:11]} 59. Rxc5 {[%clk 0:00:12]}  Bf1 {[%clk 0:00:12]} 60. Kf2 {[%clk 0:00:12]}  Bd3 {[%clk 0:00:12]} 61. Ke3 {[%clk 0:00:12]}  Bf1 {[%clk 0:00:11]} 62. Kf3 {[%clk 0:00:12]}  Bd3 {[%clk 0:00:11]} 63. g4 {[%clk 0:00:12]}  Bb1 {[%clk 0:00:11]} 64. Kf4 {[%clk 0:00:13]}  Ba2 {[%clk 0:00:12]} 65. g5 {[%clk 0:00:13]}  Kd6 {[%clk 0:00:12]} 66. Ra5 {[%clk 0:00:13]}  Bb3 {[%clk 0:00:13]} 67. g6 {[%clk 0:00:13]}  Ke7 {[%clk 0:00:13]} 68. Kg5 {[%clk 0:00:13]}  Bc2 {[%clk 0:00:13]} 69. Ra7+ {[%clk 0:00:13]}  Kf8 {[%clk 0:00:14]} 70. e5 {[%clk 0:00:14]}  Bb3 {[%clk 0:00:14]} 71. Kf6 {[%clk 0:00:14]} 1-0


[Site "https://www.chess.com"]

[Event "Titled Tuesday Blitz November 08 Late 2022"]
[White "Jimenez Almeida, Luis David"]
[Black "Ardila, Oscar Humberto"]
[WhiteFideId "22242244"]
[BlackFideId "4404742"]
[WhiteElo "2158"]
[BlackElo "1959"]
[Result "1-0"]
[Round "02"]
[TimeControl "180+1"]
[Date "2022.11.09"]
[WhiteClock "0:01:44"]
[BlackClock "0:01:03"]

1. e4 {[%clk 0:03:00]}  e5 {[%clk 0:02:59]} 2. Nf3 {[%clk 0:02:59]}  Nf6 {[%clk 0:03:00]} 3. d4 {[%clk 0:02:58]}  Nxe4 {[%clk 0:02:58]} 4. Bd3 {[%clk 0:02:58]}  d5 {[%clk 0:02:58]} 5. Nxe5 {[%clk 0:02:58]}  Nf6 {[%clk 0:02:57]} 6. O-O {[%clk 0:02:58]}  Be7 {[%clk 0:02:58]} 7. Re1 {[%clk 0:02:58]}  O-O {[%clk 0:02:58]} 8. Bf4 {[%clk 0:02:56]}  Nbd7 {[%clk 0:02:57]} 9. h3 {[%clk 0:02:54]}  c6 {[%clk 0:02:56]} 10. Nd2 {[%clk 0:02:53]}  Re8 {[%clk 0:02:57]} 11. Ndf3 {[%clk 0:02:50]}  Nf8 {[%clk 0:02:55]} 12. Ng5 {[%clk 0:02:48]}  Be6 {[%clk 0:02:52]} 13. c3 {[%clk 0:02:45]}  h6 {[%clk 0:02:48]} 14. Ngf3 {[%clk 0:02:43]}  N8d7 {[%clk 0:02:36]} 15. a4 {[%clk 0:02:38]}  Nxe5 {[%clk 0:02:34]} 16. dxe5 {[%clk 0:02:38]}  Nd7 {[%clk 0:02:34]} 17. Bc2 {[%clk 0:02:35]}  Nf8 {[%clk 0:02:27]} 18. Bg3 {[%clk 0:02:33]}  Qb6 {[%clk 0:02:22]} 19. Qd2 {[%clk 0:02:32]}  Kh8 {[%clk 0:02:19]} 20. Nd4 {[%clk 0:02:27]}  Bc5 {[%clk 0:02:16]} 21. Kh1 {[%clk 0:02:14]}  Bxd4 {[%clk 0:02:12]} 22. cxd4 {[%clk 0:02:15]}  Rab8 {[%clk 0:02:04]} 23. f4 {[%clk 0:02:13]}  Qxb2 {[%clk 0:01:45]} 24. Reb1 {[%clk 0:02:02]}  Qxb1+ {[%clk 0:01:38]} 25. Rxb1 {[%clk 0:02:02]}  b5 {[%clk 0:01:26]} 26. axb5 {[%clk 0:01:59]}  cxb5 {[%clk 0:01:25]} 27. f5 {[%clk 0:01:59]}  Bd7 {[%clk 0:01:25]} 28. f6 {[%clk 0:01:53]}  Be6 {[%clk 0:01:17]} 29. Bh4 {[%clk 0:01:46]}  g5 {[%clk 0:01:02]} 30. Bxg5 {[%clk 0:01:45]}  hxg5 {[%clk 0:01:03]} 31. Qxg5 {[%clk 0:01:44]} 1-0


[Site "https://www.chess.com"]

[Event "Titled Tuesday Blitz November 08 Late 2022"]
[White "Jones, Gawain C B"]
[Black "Danielyan, Vahe"]
[WhiteFideId "409561"]
[BlackFideId "13304828"]
[WhiteElo "2657"]
[BlackElo "2423"]
[Result "1-0"]
[Round "02"]
[TimeControl "180+1"]
[Date "2022.11.08"]
[WhiteClock "0:00:47"]
[BlackClock "0:00:03"]

1. Nf3 {[%clk 0:03:00]}  g6 {[%clk 0:02:58]} 2. e4 {[%clk 0:03:00]}  c5 {[%clk 0:02:58]} 3. d4 {[%clk 0:02:59]}  cxd4 {[%clk 0:02:59]} 4. Qxd4 {[%clk 0:03:00]}  Nf6 {[%clk 0:02:59]} 5. Nc3 {[%clk 0:02:53]}  Nc6 {[%clk 0:02:59]} 6. Qa4 {[%clk 0:02:53]}  d6 {[%clk 0:02:59]} 7. e5 {[%clk 0:02:54]}  dxe5 {[%clk 0:02:58]} 8. Nxe5 {[%clk 0:02:54]}  Bd7 {[%clk 0:02:51]} 9. Nxd7 {[%clk 0:02:54]}  Qxd7 {[%clk 0:02:52]} 10. Be2 {[%clk 0:02:49]}  Bg7 {[%clk 0:02:52]} 11. Be3 {[%clk 0:02:47]}  O-O {[%clk 0:02:51]} 12. O-O {[%clk 0:02:46]}  a6 {[%clk 0:02:46]} 13. Rad1 {[%clk 0:02:42]}  Qc7 {[%clk 0:02:45]} 14. Qh4 {[%clk 0:02:37]}  Rad8 {[%clk 0:02:39]} 15. Qg3 {[%clk 0:02:13]}  Qa5 {[%clk 0:02:27]} 16. a3 {[%clk 0:02:00]}  Nh5 {[%clk 0:02:19]} 17. Qg5 {[%clk 0:01:42]}  Bxc3 {[%clk 0:02:06]} 18. bxc3 {[%clk 0:01:43]}  Qxg5 {[%clk 0:02:06]} 19. Bxg5 {[%clk 0:01:43]}  Ng7 {[%clk 0:01:52]} 20. Bf3 {[%clk 0:01:40]}  f6 {[%clk 0:01:32]} 21. Be3 {[%clk 0:01:38]}  Nf5 {[%clk 0:01:32]} 22. Bb6 {[%clk 0:01:35]}  Rc8 {[%clk 0:01:30]} 23. Rd7 {[%clk 0:01:30]}  Ne5 {[%clk 0:01:30]} 24. Bd5+ {[%clk 0:01:30]}  Kh8 {[%clk 0:01:22]} 25. Rxb7 {[%clk 0:01:20]}  Rxc3 {[%clk 0:01:21]} 26. Bb3 {[%clk 0:01:20]}  h5 {[%clk 0:01:07]} 27. h3 {[%clk 0:01:18]}  Nf7 {[%clk 0:00:35]} 28. Ba5 {[%clk 0:01:13]}  Rc6 {[%clk 0:00:30]} 29. Bb4 {[%clk 0:01:06]}  N7d6 {[%clk 0:00:28]} 30. Rd7 {[%clk 0:01:07]}  Rfc8 {[%clk 0:00:21]} 31. g4 {[%clk 0:01:05]}  hxg4 {[%clk 0:00:17]} 32. hxg4 {[%clk 0:01:06]}  Nh4 {[%clk 0:00:12]} 33. Rxe7 {[%clk 0:01:03]}  Nb5 {[%clk 0:00:04]} 34. Rd1 {[%clk 0:01:00]}  Nc3 {[%clk 0:00:02]} 35. Rdd7 {[%clk 0:00:56]}  Nf3+ {[%clk 0:00:02]} 36. Kh1 {[%clk 0:00:51]}  Ng5 {[%clk 0:00:03]} 37. f4 {[%clk 0:00:47]} 1-0


[Site "https://www.chess.com"]

[Event "Titled Tuesday Blitz November 08 Late 2022"]
[White "Joubert, Dantelle"]
[Black "Melaugh, Shane"]
[WhiteFideId "14310813"]
[BlackFideId "2509580"]
[WhiteElo "1507"]
[BlackElo "2025"]
[Result "0-1"]
[Round "02"]
[TimeControl "180+1"]
[Date "2022.11.09"]
[WhiteClock "0:00:02"]
[BlackClock "0:02:08"]

1. d4 {[%clk 0:03:00]}  e6 {[%clk 0:02:49]} 2. c4 {[%clk 0:03:00]}  f5 {[%clk 0:02:49]} 3. Nf3 {[%clk 0:02:55]}  Nf6 {[%clk 0:02:50]} 4. g3 {[%clk 0:02:54]}  b6 {[%clk 0:02:50]} 5. Bg2 {[%clk 0:02:54]}  Bb7 {[%clk 0:02:51]} 6. O-O {[%clk 0:02:54]}  Be7 {[%clk 0:02:51]} 7. Nc3 {[%clk 0:02:53]}  Bb4 {[%clk 0:02:51]} 8. Qc2 {[%clk 0:02:45]}  Bxc3 {[%clk 0:02:51]} 9. Qxc3 {[%clk 0:02:45]}  O-O {[%clk 0:02:52]} 10. Bg5 {[%clk 0:02:43]}  h6 {[%clk 0:02:50]} 11. Bxf6 {[%clk 0:02:43]}  Qxf6 {[%clk 0:02:51]} 12. Ne5 {[%clk 0:02:08]}  Bxg2 {[%clk 0:02:52]} 13. Kxg2 {[%clk 0:02:07]}  d6 {[%clk 0:02:52]} 14. Nd3 {[%clk 0:02:05]}  c5 {[%clk 0:02:42]} 15. e3 {[%clk 0:02:00]}  Nc6 {[%clk 0:02:41]} 16. dxc5 {[%clk 0:01:51]}  Qxc3 {[%clk 0:02:41]} 17. bxc3 {[%clk 0:01:50]}  dxc5 {[%clk 0:02:42]} 18. Nf4 {[%clk 0:01:39]}  Kf7 {[%clk 0:02:40]} 19. Rfd1 {[%clk 0:01:33]}  Ne5 {[%clk 0:02:39]} 20. Rd6 {[%clk 0:01:26]}  Rfe8 {[%clk 0:02:29]} 21. Rad1 {[%clk 0:00:56]}  Nxc4 {[%clk 0:02:25]} 22. Rd7+ {[%clk 0:00:54]}  Re7 {[%clk 0:02:25]} 23. Rxe7+ {[%clk 0:00:49]}  Kxe7 {[%clk 0:02:26]} 24. h4 {[%clk 0:00:47]}  Ne5 {[%clk 0:02:25]} 25. Kf1 {[%clk 0:00:30]}  g5 {[%clk 0:02:25]} 26. hxg5 {[%clk 0:00:29]}  hxg5 {[%clk 0:02:26]} 27. Ne2 {[%clk 0:00:21]}  Rh8 {[%clk 0:02:20]} 28. Ng1 {[%clk 0:00:18]}  g4 {[%clk 0:02:17]} 29. Ke2 {[%clk 0:00:17]}  Rh1 {[%clk 0:02:15]} 30. e4 {[%clk 0:00:09]}  Nf3 {[%clk 0:02:09]} 31. Nxf3 {[%clk 0:00:08]}  gxf3+ {[%clk 0:02:10]} 32. Kd2 {[%clk 0:00:08]}  Rxd1+ {[%clk 0:02:11]} 33. Kxd1 {[%clk 0:00:08]}  fxe4 {[%clk 0:02:12]} 34. Kd2 {[%clk 0:00:09]}  Kd6 {[%clk 0:02:12]} 35. Ke3 {[%clk 0:00:09]}  Ke5 {[%clk 0:02:12]} 36. g4 {[%clk 0:00:08]}  a6 {[%clk 0:02:08]} 37. c4 {[%clk 0:00:07]}  b5 {[%clk 0:02:08]} 38. cxb5 {[%clk 0:00:06]}  axb5 {[%clk 0:02:09]} 39. g5 {[%clk 0:00:05]}  Kf5 {[%clk 0:02:09]} 40. g6 {[%clk 0:00:05]}  Kxg6 {[%clk 0:02:09]} 41. Kxe4 {[%clk 0:00:05]}  Kf6 {[%clk 0:02:09]} 42. Kxf3 {[%clk 0:00:05]}  Ke5 {[%clk 0:02:09]} 43. Ke3 {[%clk 0:00:05]}  Kd5 {[%clk 0:02:10]} 44. Kd3 {[%clk 0:00:05]}  e5 {[%clk 0:02:09]} 45. Ke3 {[%clk 0:00:06]}  c4 {[%clk 0:02:07]} 46. a3 {[%clk 0:00:05]}  e4 {[%clk 0:02:06]} 47. Kd2 {[%clk 0:00:05]}  Kd4 {[%clk 0:02:06]} 48. Kc2 {[%clk 0:00:05]}  c3 {[%clk 0:02:07]} 49. Kb3 {[%clk 0:00:03]}  Kd3 {[%clk 0:02:07]} 50. Kb4 {[%clk 0:00:02]}  c2 {[%clk 0:02:08]} 0-1


[Site "https://www.chess.com"]

[Event "Titled Tuesday Blitz November 08 Late 2022"]
[White "Kaganskiy, Gleb"]
[Black "Ambartsumova, Karina"]
[WhiteFideId "4132025"]
[BlackFideId "4166299"]
[WhiteElo "2165"]
[BlackElo "2319"]
[Result "0-1"]
[Round "02"]
[TimeControl "180+1"]
[Date "2022.11.09"]
[WhiteClock "0:00:06"]
[BlackClock "0:00:22"]

1. e4 {[%clk 0:02:36]}  e5 {[%clk 0:02:59]} 2. Nf3 {[%clk 0:02:35]}  Nc6 {[%clk 0:02:59]} 3. Nc3 {[%clk 0:02:33]}  Nf6 {[%clk 0:02:57]} 4. d4 {[%clk 0:02:33]}  exd4 {[%clk 0:02:57]} 5. Nxd4 {[%clk 0:02:33]}  Bb4 {[%clk 0:02:57]} 6. Nxc6 {[%clk 0:02:32]}  bxc6 {[%clk 0:02:57]} 7. Bd3 {[%clk 0:02:30]}  O-O {[%clk 0:02:57]} 8. O-O {[%clk 0:02:28]}  d5 {[%clk 0:02:58]} 9. Bd2 {[%clk 0:02:28]}  Bg4 {[%clk 0:02:27]} 10. f3 {[%clk 0:02:15]}  Be6 {[%clk 0:02:24]} 11. Nxd5 {[%clk 0:02:02]}  Nxd5 {[%clk 0:01:34]} 12. exd5 {[%clk 0:01:50]}  Qxd5 {[%clk 0:01:34]} 13. Bxh7+ {[%clk 0:01:30]}  Kxh7 {[%clk 0:01:25]} 14. Bxb4 {[%clk 0:01:31]}  Rfd8 {[%clk 0:01:19]} 15. Kh1 {[%clk 0:01:21]}  Qc4 {[%clk 0:01:13]} 16. Qe1 {[%clk 0:01:15]}  Qxc2 {[%clk 0:01:10]} 17. Bc3 {[%clk 0:01:09]}  Qg6 {[%clk 0:01:07]} 18. Qh4+ {[%clk 0:01:06]}  Kg8 {[%clk 0:01:07]} 19. Rad1 {[%clk 0:01:04]}  Rd5 {[%clk 0:01:06]} 20. Qg3 {[%clk 0:00:58]}  Qxg3 {[%clk 0:01:00]} 21. hxg3 {[%clk 0:00:58]}  Rxd1 {[%clk 0:01:01]} 22. Rxd1 {[%clk 0:00:58]}  Bxa2 {[%clk 0:00:57]} 23. Rd7 {[%clk 0:00:52]}  Bd5 {[%clk 0:00:47]} 24. Rxc7 {[%clk 0:00:51]}  a5 {[%clk 0:00:47]} 25. Bd4 {[%clk 0:00:33]}  a4 {[%clk 0:00:46]} 26. Ra7 {[%clk 0:00:32]}  Rxa7 {[%clk 0:00:34]} 27. Bxa7 {[%clk 0:00:33]}  Kf8 {[%clk 0:00:34]} 28. Kg1 {[%clk 0:00:28]}  Ke7 {[%clk 0:00:34]} 29. Kf2 {[%clk 0:00:29]}  Kd6 {[%clk 0:00:33]} 30. Ke3 {[%clk 0:00:25]}  c5 {[%clk 0:00:27]} 31. Kd3 {[%clk 0:00:20]}  Kc6 {[%clk 0:00:27]} 32. Kc3 {[%clk 0:00:19]}  Kb5 {[%clk 0:00:27]} 33. Bb8 {[%clk 0:00:15]}  Bc4 {[%clk 0:00:25]} 34. Be5 {[%clk 0:00:11]}  g6 {[%clk 0:00:24]} 35. Bf6 {[%clk 0:00:10]}  Bf1 {[%clk 0:00:24]} 36. f4 {[%clk 0:00:09]}  Bxg2 {[%clk 0:00:24]} 37. Be7 {[%clk 0:00:10]}  Bd5 {[%clk 0:00:24]} 38. Bf8 {[%clk 0:00:10]}  Kc6 {[%clk 0:00:24]} 39. Be7 {[%clk 0:00:10]}  Bb3 {[%clk 0:00:23]} 40. Bf8 {[%clk 0:00:10]}  Kd5 {[%clk 0:00:24]} 41. Be7 {[%clk 0:00:10]}  c4 {[%clk 0:00:24]} 42. Bd8 {[%clk 0:00:05]}  Ke4 {[%clk 0:00:24]} 43. Be7 {[%clk 0:00:05]}  Kf3 {[%clk 0:00:25]} 44. Bh4 {[%clk 0:00:05]}  Kg4 {[%clk 0:00:20]} 45. Kb4 {[%clk 0:00:06]}  Kf5 {[%clk 0:00:19]} 46. Kb5 {[%clk 0:00:04]}  f6 {[%clk 0:00:19]} 47. Kb4 {[%clk 0:00:03]}  g5 {[%clk 0:00:19]} 48. fxg5 {[%clk 0:00:03]}  fxg5 {[%clk 0:00:20]} 49. g4+ {[%clk 0:00:03]}  Kxg4 {[%clk 0:00:20]} 50. Be1 {[%clk 0:00:02]}  Kf3 {[%clk 0:00:20]} 51. Kc3 {[%clk 0:00:03]}  g4 {[%clk 0:00:21]} 52. Kb4 {[%clk 0:00:02]}  g3 {[%clk 0:00:21]} 53. Bxg3 {[%clk 0:00:03]}  Kxg3 {[%clk 0:00:21]} 54. Ka3 {[%clk 0:00:04]}  Kf3 {[%clk 0:00:22]} 55. Kb4 {[%clk 0:00:04]}  Ke3 {[%clk 0:00:22]} 56. Ka3 {[%clk 0:00:04]}  Kd3 {[%clk 0:00:21]} 57. Kb4 {[%clk 0:00:05]}  Kc2 {[%clk 0:00:21]} 58. Ka3 {[%clk 0:00:05]}  Kb1 {[%clk 0:00:21]} 59. Kb4 {[%clk 0:00:06]}  Kxb2 {[%clk 0:00:22]} 0-1


[Site "https://www.chess.com"]

[Event "Titled Tuesday Blitz November 08 Late 2022"]
[White "Karas, Marek"]
[Black "Sibilio, Mario"]
[WhiteFideId "14928558"]
[BlackFideId "800422"]
[WhiteElo "2220"]
[BlackElo "2251"]
[Result "0-1"]
[Round "02"]
[TimeControl "180+1"]
[Date "2022.11.09"]
[WhiteClock "0:00:19"]
[BlackClock "0:00:37"]

1. e4 {[%clk 0:02:59]}  d6 {[%clk 0:02:57]} 2. d4 {[%clk 0:02:59]}  Nf6 {[%clk 0:02:57]} 3. Nc3 {[%clk 0:02:59]}  g6 {[%clk 0:02:56]} 4. Be2 {[%clk 0:03:00]}  Bg7 {[%clk 0:02:55]} 5. g4 {[%clk 0:03:00]}  Nc6 {[%clk 0:02:44]} 6. g5 {[%clk 0:02:59]}  Nd7 {[%clk 0:02:43]} 7. Be3 {[%clk 0:02:58]}  e5 {[%clk 0:02:42]} 8. d5 {[%clk 0:02:57]}  Nd4 {[%clk 0:02:37]} 9. Nf3 {[%clk 0:02:57]}  Nxf3+ {[%clk 0:02:33]} 10. Bxf3 {[%clk 0:02:58]}  h5 {[%clk 0:02:24]} 11. gxh6 {[%clk 0:02:55]}  Bxh6 {[%clk 0:02:23]} 12. Bxh6 {[%clk 0:02:52]}  Rxh6 {[%clk 0:02:22]} 13. Qd2 {[%clk 0:02:53]}  Rh4 {[%clk 0:02:17]} 14. O-O-O {[%clk 0:02:51]}  a6 {[%clk 0:02:16]} 15. Rdg1 {[%clk 0:02:43]}  Qf6 {[%clk 0:02:09]} 16. Bg4 {[%clk 0:02:40]}  Nc5 {[%clk 0:02:04]} 17. Bxc8 {[%clk 0:02:22]}  Rxc8 {[%clk 0:02:03]} 18. Qe2 {[%clk 0:02:17]}  Qf4+ {[%clk 0:01:53]} 19. Kb1 {[%clk 0:02:17]}  Nxe4 {[%clk 0:01:53]} 20. Nd1 {[%clk 0:02:16]}  Nd2+ {[%clk 0:01:47]} 21. Ka1 {[%clk 0:02:16]}  Nf3 {[%clk 0:01:46]} 22. Ne3 {[%clk 0:02:08]}  Nxg1 {[%clk 0:01:45]} 23. Rxg1 {[%clk 0:02:09]}  Rxh2 {[%clk 0:01:44]} 24. Rf1 {[%clk 0:02:08]}  Ke7 {[%clk 0:01:42]} 25. a3 {[%clk 0:02:03]}  Rch8 {[%clk 0:01:41]} 26. Qd2 {[%clk 0:01:54]}  Rh1 {[%clk 0:01:38]} 27. Rxh1 {[%clk 0:01:53]}  Rxh1+ {[%clk 0:01:37]} 28. Ka2 {[%clk 0:01:54]}  Qd4 {[%clk 0:01:32]} 29. Qe2 {[%clk 0:01:50]}  b5 {[%clk 0:01:28]} 30. Qf3 {[%clk 0:01:47]}  Rh4 {[%clk 0:01:24]} 31. Qg3 {[%clk 0:01:40]}  Qf4 {[%clk 0:01:21]} 32. Qg1 {[%clk 0:01:36]}  Rh2 {[%clk 0:01:17]} 33. Qe1 {[%clk 0:01:21]}  Rxf2 {[%clk 0:01:12]} 34. Qc3 {[%clk 0:01:20]}  Kd8 {[%clk 0:01:08]} 35. Nd1 {[%clk 0:01:07]}  Rf3 {[%clk 0:01:06]} 36. Qa5 {[%clk 0:01:04]}  Qc4+ {[%clk 0:01:05]} 37. Kb1 {[%clk 0:01:00]}  Qxd5 {[%clk 0:01:03]} 38. Qe1 {[%clk 0:00:53]}  Qc4 {[%clk 0:01:01]} 39. b3 {[%clk 0:00:43]}  Qf4 {[%clk 0:00:56]} 40. Ka2 {[%clk 0:00:37]}  Rf1 {[%clk 0:00:52]} 41. Qe2 {[%clk 0:00:32]}  Qf3 {[%clk 0:00:52]} 42. Qh2 {[%clk 0:00:22]}  Qxd1 {[%clk 0:00:49]} 43. Qh8+ {[%clk 0:00:19]}  Kd7 {[%clk 0:00:47]} 44. Qh3+ {[%clk 0:00:20]}  f5 {[%clk 0:00:41]} 45. Qh7+ {[%clk 0:00:19]}  Kc6 {[%clk 0:00:40]} 46. Kb2 {[%clk 0:00:19]}  Qa1# {[%clk 0:00:37]} 0-1


[Site "https://www.chess.com"]

[Event "Titled Tuesday Blitz November 08 Late 2022"]
[White "Kirillov, Dmitry"]
[Black "Rodriguez Santiago, Jaime"]
[WhiteFideId "34180572"]
[BlackFideId "3100898"]
[WhiteElo "2095"]
[BlackElo "2025"]
[Result "1-0"]
[Round "02"]
[TimeControl "180+1"]
[Date "2022.11.09"]
[WhiteClock "0:00:48"]
[BlackClock "0:00:47"]

1. e4 {[%clk 0:02:59]}  c6 {[%clk 0:02:58]} 2. d4 {[%clk 0:02:59]}  d5 {[%clk 0:02:58]} 3. Nc3 {[%clk 0:02:59]}  dxe4 {[%clk 0:02:58]} 4. Nxe4 {[%clk 0:03:00]}  Nf6 {[%clk 0:02:58]} 5. Nxf6+ {[%clk 0:03:01]}  exf6 {[%clk 0:02:59]} 6. c3 {[%clk 0:03:02]}  Bd6 {[%clk 0:02:59]} 7. Bd3 {[%clk 0:03:03]}  O-O {[%clk 0:02:59]} 8. Qc2 {[%clk 0:03:04]}  Re8+ {[%clk 0:02:59]} 9. Ne2 {[%clk 0:03:04]}  h5 {[%clk 0:02:58]} 10. Be3 {[%clk 0:03:05]}  h4 {[%clk 0:02:56]} 11. h3 {[%clk 0:03:04]}  Nd7 {[%clk 0:02:56]} 12. O-O-O {[%clk 0:03:05]}  Nf8 {[%clk 0:02:56]} 13. Kb1 {[%clk 0:03:05]}  Be6 {[%clk 0:02:56]} 14. c4 {[%clk 0:03:06]}  a5 {[%clk 0:02:47]} 15. a3 {[%clk 0:03:00]}  a4 {[%clk 0:02:46]} 16. Nc3 {[%clk 0:03:00]}  b5 {[%clk 0:02:44]} 17. d5 {[%clk 0:02:50]}  bxc4 {[%clk 0:02:27]} 18. dxe6 {[%clk 0:02:50]}  cxd3 {[%clk 0:02:26]} 19. exf7+ {[%clk 0:02:51]}  Kxf7 {[%clk 0:02:26]} 20. Qxd3 {[%clk 0:02:51]}  Re6 {[%clk 0:02:20]} 21. Ne4 {[%clk 0:02:35]}  Be7 {[%clk 0:02:11]} 22. Qc4 {[%clk 0:02:35]}  Qb8 {[%clk 0:02:00]} 23. Nc5 {[%clk 0:02:29]}  Bxc5 {[%clk 0:01:58]} 24. Bxc5 {[%clk 0:02:30]}  Qb5 {[%clk 0:01:24]} 25. Qxb5 {[%clk 0:01:52]}  cxb5 {[%clk 0:01:24]} 26. Rd4 {[%clk 0:01:52]}  Rc8 {[%clk 0:01:22]} 27. Rc1 {[%clk 0:01:39]}  Re2 {[%clk 0:01:19]} 28. Rxh4 {[%clk 0:01:13]}  g5 {[%clk 0:01:19]} 29. Rb4 {[%clk 0:01:11]}  Ne6 {[%clk 0:01:17]} 30. Be3 {[%clk 0:01:10]}  Rxc1+ {[%clk 0:00:57]} 31. Kxc1 {[%clk 0:01:11]}  f5 {[%clk 0:00:58]} 32. g3 {[%clk 0:01:11]}  f4 {[%clk 0:00:58]} 33. gxf4 {[%clk 0:01:00]}  gxf4 {[%clk 0:00:57]} 34. Bb6 {[%clk 0:00:53]}  f3 {[%clk 0:00:47]} 35. Rxb5 {[%clk 0:00:50]}  Nf4 {[%clk 0:00:47]} 36. Rf5+ {[%clk 0:00:48]}  Ke6 {[%clk 0:00:46]} 37. Rxf4 {[%clk 0:00:48]}  Re1+ {[%clk 0:00:46]} 38. Kd2 {[%clk 0:00:48]}  Re2+ {[%clk 0:00:47]} 39. Kc3 {[%clk 0:00:48]} 1-0


[Site "https://www.chess.com"]